fUST/lending_fUST_20251018
["ID","MTS","AMOUNT","RATE_DAILY","PERIOD"]
[391673501,1760724658540,-154.33034444,0.00032712,30]
[391673502,1760724658550,-153.0,0.00032727,2]
[391673503,1760724658559,-153.0,0.00032727,2]
[391673504,1760724658569,-153.0,0.00032727,2]
[391673505,1760724658578,-151.93341378,0.0003274,30]
[391673506,1760724658587,-8727.28602825,0.00032772,2]
[391673507,1760724658597,-1441.3664672,0.00032797,2]
[391673508,1760724658606,-271.956981,0.00032825,10]
[391673509,1760724658615,-155.530121,0.00032825,10]
[391673510,1760724658624,-1070.3120266,0.00032826,2]
[391673511,1760724658634,-405.0038606,0.00032827,2]
[391673512,1760724658643,-600.0,0.00032852,2]
[391673513,1760724658653,-500.0,0.00032876,5]
[391673514,1760724658662,-500.0,0.00032876,5]
[391673515,1760724658671,-1383.67,0.00032876,5]
[391673516,1760724658680,-622.67,0.00032876,5]
[391673517,1760724658689,-1116.32,0.00032876,5]
[391673518,1760724658699,-500.0,0.00032876,5]
[391673519,1760724658707,-4876.64,0.00032876,5]
[391673520,1760724658717,-500.0,0.00032876,5]
[391673521,1760724658726,-500.0,0.00032876,5]
[391673522,1760724658735,-2483.49,0.00032876,5]
[391673523,1760724658744,-606.34,0.00032876,5]
[391673524,1760724658754,-500.0,0.00032876,5]
[391673525,1760724658763,-500.0,0.00032876,5]
[391673526,1760724658772,-500.0,0.00032876,5]
[391673527,1760724658781,-624.44,0.00032876,5]
[391673528,1760724658791,-500.0,0.00032876,5]
[391673529,1760724658800,-500.0,0.00032876,5]
[391673530,1760724658809,-1826.15,0.00032876,2]
[391673531,1760724658818,-500.0,0.00032876,5]
[391673532,1760724658828,-500.0,0.00032876,5]
[391673533,1760724658837,-785.68,0.00032876,5]
[391673534,1760724658846,-500.0,0.00032876,5]
[391673535,1760724658855,-500.0,0.00032876,5]
[391673536,1760724658865,-500.0,0.00032876,5]
[391673537,1760724658874,-895.98,0.00032876,5]
[391673538,1760724658883,-4958.33,0.00032876,5]
[391673539,1760724658893,-500.0,0.00032876,2]
[391673540,1760724658902,-500.0,0.00032876,5]
[391673541,1760724658911,-500.0,0.00032876,5]
[391673542,1760724658924,-5210.72,0.00032876,5]
[391673543,1760724658933,-500.0,0.00032876,5]
[391673544,1760724658942,-518.86,0.00032876,5]
[391673545,1760724658951,-805.93,0.00032876,5]
[391673546,1760724658961,-279.91,0.00032876,5]
[391673547,1760724658970,-500.0,0.00032876,5]
[391673548,1760724658980,-656.71,0.00032876,3]
[391673549,1760724658991,-529.54,0.00032876,5]
[391673550,1760724659000,-500.0,0.00032876,5]
[391673551,1760724659010,-678.35,0.00032876,5]
[391673552,1760724659019,-500.0,0.00032876,5]
[391673553,1760724659028,-545.0,0.00032876,5]
[391673554,1760724659037,-2386.99,0.00032876,5]
[391673555,1760724659047,-500.0,0.00032876,5]
[391673556,1760724659056,-500.0,0.00032876,5]
[391673557,1760724659065,-500.0,0.00032876,5]
[391673558,1760724659074,-500.0,0.00032876,5]
[391673559,1760724659084,-5093.68,0.00032876,5]
[391673560,1760724659094,-647.06,0.00032876,5]
[391673561,1760724659103,-500.0,0.00032876,5]
[391673562,1760724659113,-500.0,0.00032876,5]
[391673563,1760724659122,-500.0,0.00032876,5]
[391673564,1760724659132,-500.0,0.00032876,5]
[391673565,1760724659142,-500.0,0.00032876,5]
[391673566,1760724659151,-273.63584228,0.00032876,5]
[391673567,1760724659161,-9395.89,0.00032876,5]
[391673568,1760724659171,-500.0,0.00032876,5]
[391673569,1760724659182,-500.0,0.00032876,2]
[391673570,1760724659191,-500.0,0.00032876,5]
[391673571,1760724659201,-500.0,0.00032876,5]
[391673572,1760724659211,-500.0,0.00032876,5]
[391673573,1760724659221,-500.0,0.00032876,5]
[391673574,1760724659232,-318.49,0.00032877,26]
[391673575,1760724659242,-1441.3664672,0.00032897,2]
[391673576,1760724659251,-190.75,0.000329,2]
[391673577,1760724659261,-960.0,0.00032904,2]
[391673578,1760724659270,-271.956981,0.00032917,4]
[391673579,1760724659280,-155.530121,0.00032917,4]
[391673580,1760724659289,-271.956981,0.0003295,10]
[391673581,1760724659299,-155.530121,0.0003295,10]
[391673582,1760724659308,-20000.0,0.0003299,30]
[391673583,1760724659317,-1441.3664672,0.00032997,2]
[391673584,1760724659327,-21096.31903495,0.00033,30]
[391673585,1760724659336,-49932.4896357,0.00033,7]
[391673586,1760724659346,-18199.17831955,0.00033,120]
[391673587,1760724659355,-160.0,0.00033,120]
[391673588,1760724659365,-25285.53,0.00033,14]
[391673589,1760724659374,-402.69031254,0.00033,120]
[391673590,1760724659383,-442.5,0.00033005,2]
[391673591,1760724659392,-166.0,0.00033029,2]
[391673592,1760724659402,-4250.81,0.00033045,120]
[391673593,1760724659412,-4572.32533956,0.00033056,5]
[391673594,1760724659421,-271.956981,0.00033076,10]
[391673595,1760724659431,-155.530121,0.00033076,10]
[391673596,1760724659440,-1441.3664672,0.00033097,2]
[391673597,1760724659450,-500.0,0.0003312,10]
[391673598,1760724659460,-500.0,0.0003312,30]
[391673599,1760724659469,-504.1350011,0.0003312,10]
[391673600,1760724659478,-506.27935498,0.0003315,5]
[391673601,1760724659487,-500.0,0.0003315,5]
[391673602,1760724659497,-1383.67,0.0003315,5]
[391673603,1760724659506,-622.67,0.0003315,5]
[391673604,1760724659516,-1116.32,0.0003315,5]
[391673605,1760724659525,-500.0,0.0003315,5]
[391673606,1760724659534,-4876.64,0.0003315,5]
[391673607,1760724659544,-500.0,0.0003315,5]
[391673608,1760724659553,-500.0,0.0003315,5]
[391673609,1760724659563,-2483.49,0.0003315,5]
[391673610,1760724659573,-606.34,0.0003315,5]
[391673611,1760724659582,-500.0,0.0003315,5]
[391673612,1760724659591,-500.0,0.0003315,5]
[391673613,1760724659698,-500.0,0.0003315,5]
[391673614,1760724659709,-624.44,0.0003315,5]
[391673615,1760724659718,-500.0,0.0003315,5]
[391673616,1760724659727,-500.0,0.0003315,5]
[391673617,1760724659737,-1826.15,0.0003315,2]
[391673618,1760724659747,-500.0,0.0003315,5]
[391673619,1760724659757,-500.0,0.0003315,5]
[391673620,1760724659767,-785.68,0.0003315,5]
[391673621,1760724659776,-500.0,0.0003315,5]
[391673622,1760724659786,-500.0,0.0003315,5]
[391673623,1760724659795,-500.0,0.0003315,5]
[391673624,1760724659804,-895.98,0.0003315,5]
[391673625,1760724659814,-4958.33,0.0003315,5]
[391673626,1760724659823,-500.0,0.0003315,2]
[391673627,1760724659833,-500.0,0.0003315,5]
[391673628,1760724659842,-500.0,0.0003315,5]
[391673629,1760724659851,-5210.72,0.0003315,5]
[391673630,1760724659861,-500.0,0.0003315,5]
[391673631,1760724659870,-518.86,0.0003315,5]
[391673632,1760724659880,-805.93,0.0003315,5]
[391673633,1760724659889,-500.0,0.0003315,5]
[391673634,1760724659899,-656.71,0.0003315,3]
[391673635,1760724659908,-529.54,0.0003315,5]
[391673636,1760724659923,-500.0,0.0003315,5]
[391673637,1760724659932,-678.35,0.0003315,5]
[391673638,1760724659942,-500.0,0.0003315,5]
[391673639,1760724659951,-545.0,0.0003315,5]
[391673640,1760724659962,-2386.99,0.0003315,5]
[391673641,1760724659971,-500.0,0.0003315,5]
[391673642,1760724659981,-500.0,0.0003315,5]
[391673643,1760724659992,-500.0,0.0003315,5]
[391673644,1760724660001,-500.0,0.0003315,5]
[391673645,1760724660012,-5093.68,0.0003315,5]
[391673646,1760724660022,-647.06,0.0003315,5]
[391673647,1760724660031,-500.0,0.0003315,5]
[391673648,1760724660041,-500.0,0.0003315,5]
[391673649,1760724660050,-500.0,0.0003315,5]
[391673650,1760724660060,-500.0,0.0003315,5]
[391673651,1760724660070,-500.0,0.0003315,5]
[391673652,1760724660080,-9395.89,0.0003315,5]
[391673653,1760724660090,-500.0,0.0003315,5]
[391673654,1760724660100,-500.0,0.0003315,2]
[391673655,1760724660111,-500.0,0.0003315,5]
[391673656,1760724660120,-500.0,0.0003315,5]
[391673657,1760724660130,-500.0,0.0003315,5]
[391673658,1760724660141,-500.0,0.0003315,5]
[391673659,1760724660151,-318.49,0.00033151,27]
[391673660,1760724660161,-491.218618,0.00033165,2]
[391673661,1760724660173,-600.0,0.00033191,2]
[391673662,1760724660183,-1441.3664672,0.00033197,2]
[391673663,1760724660192,-271.956981,0.00033201,10]
[391673664,1760724660203,-155.530121,0.00033201,10]
[391673665,1760724660212,-152.535861,0.00033201,10]
[391673666,1760724660222,-650.0,0.00033212,5]
[391673667,1760724660231,-271.956981,0.00033241,15]
[391673668,1760724660242,-155.530121,0.00033241,15]
[391673669,1760724660252,-1441.3664672,0.00033297,2]
[391673670,1760724660261,-3826.07,0.000333,14]
[391673671,1760724660271,-450.0,0.00033382,12]
[391673672,1760724660281,-1441.3664672,0.00033397,2]
[391673673,1760724660290,-150.0,0.00033412,2]
[391673674,1760724660300,-150.0,0.00033412,2]
[391673675,1760724660309,-150.0,0.00033412,2]
[391673676,1760724660318,-150.0,0.00033412,2]
[391673677,1760724660328,-150.0,0.00033412,2]
[391673678,1760724660337,-150.0,0.00033412,2]
[391673679,1760724660346,-500.0,0.00033424,5]
[391673680,1760724660356,-1383.67,0.00033424,5]
[391673681,1760724660366,-622.67,0.00033424,5]
[391673682,1760724660375,-1116.32,0.00033424,5]
[391673683,1760724660384,-500.0,0.00033424,5]
[391673684,1760724660394,-4876.64,0.00033424,5]
[391673685,1760724660403,-500.0,0.00033424,5]
[391673686,1760724660412,-500.0,0.00033424,5]
[391673687,1760724660424,-2483.49,0.00033424,5]
[391673688,1760724660433,-606.34,0.00033424,5]
[391673689,1760724660443,-500.0,0.00033424,5]
[391673690,1760724660452,-617.31,0.00033424,5]
[391673691,1760724660462,-500.0,0.00033424,5]
[391673692,1760724660472,-624.44,0.00033424,5]
[391673693,1760724660481,-500.0,0.00033424,5]
[391673694,1760724660491,-279.53153856,0.00033424,5]
[391673695,1760724660500,-1826.15,0.00033424,2]
[391673696,1760724660510,-500.0,0.00033424,5]
[391673697,1760724660519,-500.0,0.00033424,5]
[391673698,1760724660529,-785.68,0.00033424,5]
[391673699,1760724660538,-500.0,0.00033424,5]
[391673700,1760724660547,-500.0,0.00033424,5]
[391673701,1760724660557,-500.0,0.00033424,5]
[391673702,1760724660566,-895.98,0.00033424,5]
[391673703,1760724660575,-4958.33,0.00033424,5]
[391673704,1760724660584,-500.0,0.00033424,2]
[391673705,1760724660594,-500.0,0.00033424,5]
[391673706,1760724660603,-500.0,0.00033424,5]
[391673707,1760724660612,-5210.72,0.00033424,5]
[391673708,1760724660622,-282.84698704,0.00033424,5]
[391673709,1760724660632,-518.86,0.00033424,5]
[391673710,1760724660641,-805.93,0.00033424,5]
[391673711,1760724660651,-500.0,0.00033424,5]
[391673712,1760724660660,-656.71,0.00033424,3]
[391673713,1760724660671,-529.54,0.00033424,5]
[391673714,1760724660680,-500.0,0.00033424,5]
[391673715,1760724660690,-678.35,0.00033424,5]
[391673716,1760724660699,-500.0,0.00033424,5]
[391673717,1760724660708,-545.0,0.00033424,5]
[391673718,1760724660717,-2386.99,0.00033424,5]
[391673719,1760724660726,-500.0,0.00033424,5]
[391673720,1760724660735,-500.0,0.00033424,5]
[391673721,1760724660744,-500.0,0.00033424,5]
[391673722,1760724660752,-500.0,0.00033424,5]
[391673723,1760724660762,-5093.68,0.00033424,5]
[391673724,1760724660771,-647.06,0.00033424,5]
[391673725,1760724660780,-500.0,0.00033424,5]
[391673726,1760724660790,-500.0,0.00033424,5]
[391673727,1760724660799,-500.0,0.00033424,5]
[391673728,1760724660808,-500.0,0.00033424,5]
[391673729,1760724660817,-500.0,0.00033424,5]
[391673730,1760724660827,-9395.89,0.00033424,5]
[391673731,1760724660836,-500.0,0.00033424,5]
[391673732,1760724660846,-500.0,0.00033424,2]
[391673733,1760724660856,-500.0,0.00033424,5]
[391673734,1760724660866,-500.0,0.00033424,5]
[391673735,1760724660876,-500.0,0.00033424,5]
[391673736,1760724660885,-500.0,0.00033424,5]
[391673737,1760724660895,-318.49,0.00033425,28]
[391673738,1760724660904,-1293.8963765,0.00033438,2]
[391673739,1760724660914,-1060.0,0.00033452,2]
[391673740,1760724660927,-2167.3550014,0.00033489,2]
[391673741,1760724660937,-1441.3664672,0.00033497,2]
[391673742,1760724660946,-600.0,0.00033529,2]
[391673743,1760724660955,-166.0,0.00033577,2]
[391673744,1760724660965,-465.0,0.00033605,2]
[391673745,1760724660974,-271.956981,0.00033613,2]
[391673746,1760724660984,-155.530121,0.00033613,2]
[391673747,1760724660995,-1000.0,0.0003366,2]
[391673748,1760724661004,-1000.0,0.0003366,2]
[391673749,1760724661014,-1000.0,0.0003366,2]
[391673750,1760724661023,-1000.0,0.0003366,2]
[391673751,1760724661033,-1000.0,0.0003366,2]
[391673752,1760724661042,-1000.0,0.0003366,2]
[391673753,1760724661052,-1000.0,0.0003366,2]
[391673754,1760724661062,-1000.0,0.0003366,2]
[391673755,1760724661072,-1000.0,0.0003366,2]
[391673756,1760724661082,-1000.0,0.0003366,2]
[391673757,1760724661091,-1000.0,0.0003366,2]
[391673758,1760724661100,-1000.0,0.0003366,2]
[391673759,1760724661110,-1000.0,0.0003366,2]
[391673760,1760724661120,-1000.0,0.0003366,2]
[391673761,1760724661130,-1000.0,0.0003366,2]
[391673762,1760724661139,-1000.0,0.0003366,2]
[391673763,1760724661149,-1000.0,0.0003366,2]
[391673764,1760724661159,-1157.25,0.0003366,2]
[391673765,1760724661168,-1000.0,0.0003366,2]
[391673766,1760724661177,-500.0,0.00033698,5]
[391673767,1760724661187,-1383.67,0.00033698,5]
[391673768,1760724661196,-622.67,0.00033698,5]
[391673769,1760724661206,-1116.32,0.00033698,5]
[391673770,1760724661215,-500.0,0.00033698,5]
[391673771,1760724661224,-4876.64,0.00033698,5]
[391673772,1760724661234,-500.0,0.00033698,5]
[391673773,1760724661243,-500.0,0.00033698,5]
[391673774,1760724661253,-2483.49,0.00033698,5]
[391673775,1760724661262,-606.34,0.00033698,5]
[391673776,1760724661271,-500.0,0.00033698,5]
[391673777,1760724661281,-500.0,0.00033698,5]
[391673778,1760724661290,-624.44,0.00033698,5]
[391673779,1760724661300,-500.0,0.00033698,5]
[391673780,1760724661310,-1826.15,0.00033698,2]
[391673781,1760724661319,-500.0,0.00033698,5]
[391673782,1760724661328,-500.0,0.00033698,5]
[391673783,1760724661338,-785.68,0.00033698,5]
[391673784,1760724661347,-330.70320169,0.00033698,5]
[391673785,1760724661356,-500.0,0.00033698,5]
[391673786,1760724661365,-500.0,0.00033698,5]
[391673787,1760724661374,-895.98,0.00033698,5]
[391673788,1760724661384,-4958.33,0.00033698,5]
[391673789,1760724661393,-500.0,0.00033698,2]
[391673790,1760724661403,-500.0,0.00033698,5]
[391673791,1760724661412,-500.0,0.00033698,5]
[391673792,1760724661423,-5210.72,0.00033698,5]
[391673793,1760724661432,-518.86,0.00033698,5]
[391673794,1760724661442,-805.93,0.00033698,5]
[391673795,1760724661452,-500.0,0.00033698,5]
[391673796,1760724661461,-656.71,0.00033698,3]
[391673797,1760724661470,-529.54,0.00033698,5]
[391673798,1760724661480,-355.415638,0.00033698,5]
[391673799,1760724661489,-678.35,0.00033698,5]
[391673800,1760724661499,-500.0,0.00033698,5]
[391673801,1760724661508,-545.0,0.00033698,5]
[391673802,1760724661517,-2386.99,0.00033698,5]
[391673803,1760724661526,-500.0,0.00033698,5]
[391673804,1760724661535,-500.0,0.00033698,5]
[391673805,1760724661544,-500.0,0.00033698,5]
[391673806,1760724661554,-500.0,0.00033698,5]
[391673807,1760724661563,-5093.68,0.00033698,5]
[391673808,1760724661573,-647.06,0.00033698,5]
[391673809,1760724661581,-500.0,0.00033698,5]
[391673810,1760724661591,-500.0,0.00033698,5]
[391673811,1760724661600,-500.0,0.00033698,5]
[391673812,1760724661609,-500.0,0.00033698,5]
[391673813,1760724661618,-500.0,0.00033698,5]
[391673814,1760724661627,-500.0,0.00033698,7]
[391673815,1760724661637,-9395.89,0.00033698,5]
[391673816,1760724661646,-500.0,0.00033698,5]
[391673817,1760724661656,-500.0,0.00033698,2]
[391673818,1760724661666,-500.0,0.00033698,5]
[391673819,1760724661676,-500.0,0.00033698,5]
[391673820,1760724661685,-500.0,0.00033698,5]
[391673821,1760724661694,-500.0,0.00033698,5]
[391673822,1760724661703,-318.49,0.00033699,29]
[391673823,1760724661712,-2426.51,0.000337,2]
[391673824,1760724661721,-585.92436597,0.0003376,5]
[391673825,1760724661730,-500.0,0.00033773,5]
[391673826,1760724661740,-934307.2219,0.00033775,2]
[391673827,1760724661749,-4250.81,0.00033867,120]
[391673828,1760724661758,-600.0,0.00033868,2]
[391673829,1760724661768,-500.0,0.00033968,60]
[391673830,1760724661777,-271.956981,0.00033968,20]
[391673831,1760724661787,-155.530121,0.00033968,20]
[391673832,1760724661797,-2639.66722426,0.0003397,60]
[391673833,1760724661806,-5000.0,0.00033971,60]
[391673834,1760724661816,-500.0,0.00033972,5]
[391673835,1760724661917,-1383.67,0.00033972,5]
[391673836,1760724661927,-622.67,0.00033972,5]
[391673837,1760724661937,-1116.32,0.00033972,5]
[391673838,1760724661946,-500.0,0.00033972,5]
[391673839,1760724661955,-4876.64,0.00033972,5]
[391673840,1760724661967,-500.0,0.00033972,5]
[391673841,1760724661976,-500.0,0.00033972,5]
[391673842,1760724661987,-2483.49,0.00033972,5]
[391673843,1760724661999,-606.34,0.00033972,5]
[391673844,1760724662008,-500.0,0.00033972,5]
[391673845,1760724662018,-500.0,0.00033972,5]
[391673846,1760724662028,-624.44,0.00033972,5]
[391673847,1760724662038,-500.0,0.00033972,5]
[391673848,1760724662048,-1826.15,0.00033972,2]
[391673849,1760724662057,-500.0,0.00033972,5]
[391673850,1760724662067,-500.0,0.00033972,5]
[391673851,1760724662077,-785.68,0.00033972,5]
[391673852,1760724662086,-500.0,0.00033972,5]
[391673853,1760724662096,-500.0,0.00033972,5]
[391673854,1760724662106,-895.98,0.00033972,5]
[391673855,1760724662116,-4958.33,0.00033972,5]
[391673856,1760724662127,-500.0,0.00033972,2]
[391673857,1760724662137,-500.0,0.00033972,5]
[391673858,1760724662147,-500.0,0.00033972,5]
[391673859,1760724662157,-5210.72,0.00033972,5]
[391673860,1760724662168,-518.86,0.00033972,5]
[391673861,1760724662179,-805.93,0.00033972,5]
[391673862,1760724662190,-656.71,0.00033972,3]
[391673863,1760724662200,-529.54,0.00033972,5]
[391673864,1760724662210,-678.35,0.00033972,5]
[391673865,1760724662221,-500.0,0.00033972,5]
[391673866,1760724662231,-545.0,0.00033972,5]
[391673867,1760724662241,-2386.99,0.00033972,5]
[391673868,1760724662251,-500.0,0.00033972,5]
[391673869,1760724662260,-500.0,0.00033972,5]
[391673870,1760724662270,-500.0,0.00033972,5]
[391673871,1760724662280,-500.0,0.00033972,5]
[391673872,1760724662290,-5093.68,0.00033972,5]
[391673873,1760724662301,-647.06,0.00033972,5]
[391673874,1760724662311,-500.0,0.00033972,5]
[391673875,1760724662321,-500.0,0.00033972,5]
[391673876,1760724662331,-500.0,0.00033972,5]
[391673877,1760724662340,-500.0,0.00033972,5]
[391673878,1760724662350,-500.0,0.00033972,5]
[391673879,1760724662360,-9395.89,0.00033972,5]
[391673880,1760724662370,-500.0,0.00033972,5]
[391673881,1760724662380,-500.0,0.00033972,2]
[391673882,1760724662390,-500.0,0.00033972,5]
[391673883,1760724662400,-500.0,0.00033972,5]
[391673884,1760724662409,-411.14704802,0.00033972,5]
[391673885,1760724662420,-500.0,0.00033972,5]
[391673886,1760724662429,-318.58,0.00033973,30]
[391673887,1760724662438,-934872.36,0.00033975,7]
[391673888,1760724662448,-10000.0,0.00033981,60]
[391673889,1760724662459,-1468.0,0.00033981,60]
[391673890,1760724662468,-10000.0,0.0003399,30]
[391673891,1760724662479,-151.30210609,0.00033999,2]
[391673892,1760724662489,-1160.0,0.00033999,2]
[391673893,1760724662499,-271.956981,0.00034,60]
[391673894,1760724662509,-155.530121,0.00034,60]
[391673895,1760724662518,-271.956981,0.00034001,20]
[391673896,1760724662528,-155.530121,0.00034001,20]
[391673897,1760724662537,-271.956981,0.00034034,20]
[391673898,1760724662547,-155.530121,0.00034034,20]
[391673899,1760724662556,-10000.0,0.00034067,2]
[391673900,1760724662566,-10000.0,0.00034067,2]
[391673901,1760724662575,-10000.0,0.00034067,2]
[391673902,1760724662584,-271.956981,0.00034067,20]
[391673903,1760724662595,-155.530121,0.00034067,20]
[391673904,1760724662604,-1000.0,0.0003407,14]
[391673905,1760724662613,-1000.0,0.0003407,14]
[391673906,1760724662623,-1000.0,0.0003407,14]
[391673907,1760724662632,-150.0,0.00034075,2]
[391673908,1760724662642,-1037.70146446,0.00034075,2]
[391673909,1760724662652,-934872.36,0.00034075,30]
[391673910,1760724662661,-50000.0,0.00034075,3]
[391673911,1760724662673,-8890.0,0.00034075,30]
[391673912,1760724662682,-106489.76903019,0.00034075,20]
[391673913,1760724662692,-5485.06809412,0.00034075,7]
[391673914,1760724662702,-1197.51334391,0.00034075,2]
[391673915,1760724662712,-338.49313521,0.00034075,5]
[391673916,1760724662721,-250.0,0.00034075,10]
[391673917,1760724662731,-250.0,0.00034075,10]
[391673918,1760724662740,-250.0,0.00034075,10]
[391673919,1760724662749,-817447.7817,0.00034075,30]
[391673920,1760724662759,-1000.0,0.00034095,4]
[391673921,1760724662768,-271.956981,0.000341,30]
[391673922,1760724662778,-271.956981,0.000341,20]
[391673923,1760724662788,-271.956981,0.000341,3]
[391673924,1760724662797,-155.530121,0.000341,30]
[391673925,1760724662807,-155.530121,0.000341,20]
[391673926,1760724662817,-155.530121,0.000341,3]
[391673927,1760724662826,-152.535861,0.000341,20]
[391673928,1760724662835,-156.524901,0.000341,20]
[391673929,1760724662845,-166.0,0.00034125,2]
[391673930,1760724662855,-200.0,0.00034134,120]
[391673931,1760724662864,-25285.53,0.000342,14]
[391673932,1760724662874,-487.5,0.00034205,2]
[391673933,1760724662883,-600.0,0.00034207,2]
[391673934,1760724662892,-192.6974549,0.00034246,5]
[391673935,1760724662902,-1383.67,0.00034246,5]
[391673936,1760724662911,-622.67,0.00034246,5]
[391673937,1760724662924,-1116.32,0.00034246,5]
[391673938,1760724662934,-500.0,0.00034246,5]
[391673939,1760724662943,-4876.64,0.00034246,5]
[391673940,1760724662952,-191.28,0.00034246,5]
[391673941,1760724662963,-500.0,0.00034246,5]
[391673942,1760724662974,-2483.49,0.00034246,5]
[391673943,1760724662983,-606.34,0.00034246,5]
[391673944,1760724662995,-500.0,0.00034246,5]
[391673945,1760724663005,-500.0,0.00034246,5]
[391673946,1760724663015,-624.44,0.00034246,5]
[391673947,1760724663025,-500.0,0.00034246,5]
[391673948,1760724663035,-1826.15,0.00034246,2]
[391673949,1760724663044,-500.0,0.00034246,5]
[391673950,1760724663054,-500.0,0.00034246,5]
[391673951,1760724663064,-785.68,0.00034246,5]
[391673952,1760724663074,-500.0,0.00034246,5]
[391673953,1760724663083,-500.0,0.00034246,5]
[391673954,1760724663093,-895.98,0.00034246,5]
[391673955,1760724663103,-4958.33,0.00034246,5]
[391673956,1760724663113,-500.0,0.00034246,2]
[391673957,1760724663123,-500.0,0.00034246,5]
[391673958,1760724663132,-500.0,0.00034246,5]
[391673959,1760724663142,-5210.72,0.00034246,5]
[391673960,1760724663151,-518.86,0.00034246,5]
[391673961,1760724663161,-805.93,0.00034246,5]
[391673962,1760724663172,-656.71,0.00034246,3]
[391673963,1760724663182,-529.54,0.00034246,5]
[391673964,1760724663191,-678.35,0.00034246,5]
[391673965,1760724663201,-158.10690161,0.00034246,5]
[391673966,1760724663210,-2386.99,0.00034246,5]
[391673967,1760724663220,-545.0,0.00034246,5]
[391673968,1760724663230,-500.0,0.00034246,5]
[391673969,1760724663239,-642.15095301,0.00034246,5]
[391673970,1760724663248,-500.0,0.00034246,5]
[391673971,1760724663257,-500.0,0.00034246,5]
[391673972,1760724663267,-5093.68,0.00034246,5]
[391673973,1760724663276,-647.06,0.00034246,5]
[391673974,1760724663286,-500.0,0.00034246,5]
[391673975,1760724663295,-500.0,0.00034246,5]
[391673976,1760724663304,-500.0,0.00034246,5]
[391673977,1760724663313,-500.0,0.00034246,5]
[391673978,1760724663323,-500.0,0.00034246,5]
[391673979,1760724663333,-9395.89,0.00034246,5]
[391673980,1760724663342,-500.0,0.00034246,5]
[391673981,1760724663352,-500.0,0.00034246,2]
[391673982,1760724663361,-361.84138332,0.00034246,5]
[391673983,1760724663370,-500.0,0.00034246,5]
[391673984,1760724663380,-500.0,0.00034246,5]
[391673985,1760724663389,-271.956981,0.00034276,4]
[391673986,1760724663399,-155.530121,0.00034276,4]
[391673987,1760724663409,-288.7073057,0.00034281,2]
[391673988,1760724663418,-500.57255581,0.00034321,5]
[391673989,1760724663427,-483.6022685,0.00034343,2]
[391673990,1760724663437,-3826.07,0.000345,14]
[391673991,1760724663447,-1383.67,0.0003452,5]
[391673992,1760724663456,-622.67,0.0003452,5]
[391673993,1760724663465,-1116.32,0.0003452,5]
[391673994,1760724663475,-4876.64,0.0003452,5]
[391673995,1760724663485,-334.99248438,0.0003452,5]
[391673996,1760724663494,-2483.49,0.0003452,5]
[391673997,1760724663503,-606.34,0.0003452,5]
[391673998,1760724663512,-500.0,0.0003452,5]
[391673999,1760724663521,-500.0,0.0003452,5]
[391674000,1760724663531,-624.44,0.0003452,5]